bitfinex/quotes_BTCUSD_20240819
["timestamp","ask_amount","ask_price","bid_price","bid_amount"]
[1724063696778,1.09383811,58198.0,58197.0,0.005821]
[1724063699058,1.09383811,58198.0,58197.0,0.002821]
[1724063700407,0.40653011,58198.0,58197.0,0.003821]
[1724063700617,0.02490311,58198.0,58197.0,0.005821]
[1724063700839,0.02490311,58198.0,58197.0,0.2192368]
[1724063701047,0.02490311,58198.0,58197.0,0.005821]
[1724063701682,0.02490311,58198.0,58197.0,0.177651]
[1724063702309,0.02490311,58198.0,58197.0,0.007821]
[1724063704797,0.02490311,58198.0,58197.0,0.179651]
[1724063705887,0.02490311,58198.0,58197.0,0.007821]
[1724063707047,0.02490311,58198.0,58197.0,0.002821]
[1724063707048,1.0906292,58198.0,58197.0,0.002821]
[1724063707255,1.48183313,58198.0,58197.0,0.002821]
[1724063707480,1.57200162,58198.0,58197.0,0.002821]
[1724063707702,1.59779974,58198.0,58197.0,0.002821]
[1724063708330,1.57212702,58198.0,58197.0,0.002821]
[1724063710623,1.91578102,58198.0,58197.0,0.002821]
[1724063710807,1.83879409,58198.0,58197.0,0.002821]
[1724063711126,2.04144333,58198.0,58197.0,0.002821]
[1724063711748,2.02944333,58198.0,58197.0,0.001821]
[1724063711928,1.67378933,58198.0,58197.0,0.000821]
[1724063712250,1.70178933,58198.0,58197.0,0.002821]
[1724063712454,1.59914009,58198.0,58197.0,0.002821]
[1724063712775,1.59914009,58198.0,58197.0,0.244021]
[1724063712776,0.23180311,58198.0,58197.0,0.244021]
[1724063713011,0.14410311,58198.0,58197.0,0.2856066]
[1724063713210,0.02890311,58198.0,58197.0,0.4574366]
[1724063713993,0.02890311,58198.0,58197.0,0.2856066]
[1724063714244,0.02890311,58198.0,58197.0,0.244021]
[1724063714416,0.01490311,58198.0,58197.0,0.758511]
[1724063714797,0.01490311,58198.0,58197.0,0.413851]
[1724063714798,0.01290311,58198.0,58197.0,0.413851]
[1724063715213,0.02390311,58198.0,58197.0,0.413851]
[1724063717215,0.02390311,58198.0,58197.0,0.242021]
[1724063717339,0.74308411,58198.0,58197.0,0.003821]
[1724063718501,0.39943011,58198.0,58197.0,0.003821]
[1724063719138,0.22760311,58198.0,58197.0,0.0235869]
[1724063719343,0.13890311,58198.0,58197.0,0.1954169]
[1724063719577,0.13890311,58198.0,58197.0,0.005821]
[1724063720628,0.13890311,58198.0,58197.0,0.177651]
[1724063720834,0.02390311,58198.0,58197.0,0.177651]
[1724063721884,0.02390311,58198.0,58197.0,0.005821]
[1724063724815,0.02390311,58198.0,58197.0,0.177651]
[1724063725139,0.02390311,58198.0,58197.0,0.005821]
[1724063725338,0.02390311,58198.0,58197.0,0.177651]
[1724063726764,0.02390311,58198.0,58197.0,0.005821]
[1724063727404,0.40083011,58198.0,58197.0,0.000821]
[1724063727617,0.41723554,58198.0,58197.0,0.001821]
[1724063728439,0.41723554,58198.0,58197.0,0.003821]
[1724063728646,0.40083011,58198.0,58197.0,0.003821]
[1724063728856,0.41724317,58198.0,58197.0,0.005821]
[1724063729268,0.24541617,58198.0,58197.0,0.005821]
[1724063729475,0.24541617,58198.0,58197.0,0.0579534]
[1724063729900,0.24541617,58198.0,58197.0,0.005821]
[1724063730518,0.41724317,58198.0,58197.0,0.005821]
[1724063731169,0.24541617,58198.0,58197.0,0.005821]
[1724063731592,0.22900311,58198.0,58197.0,0.005821]
[1724063732216,0.22900311,58198.0,58197.0,0.177651]
[1724063733067,0.22900311,58198.0,58197.0,0.2297821]
[1724063733738,0.24543577,58198.0,58197.0,0.0579521]
[1724063734005,0.24543577,58198.0,58197.0,0.2297821]
[1724063734412,0.24543577,58198.0,58197.0,0.5734421]
[1724063734750,0.15393577,58198.0,58197.0,0.5734421]
[1724063735584,0.13750311,58198.0,58197.0,0.177651]
[1724063736240,0.13750311,58198.0,58197.0,0.521311]
[1724063736657,0.15393394,58198.0,58197.0,0.864971]
[1724063736922,0.15392603,58198.0,58197.0,0.521311]
[1724063737342,0.15392603,58198.0,58197.0,0.6078091]
[1724063737791,0.13750311,58198.0,58197.0,0.521311]
[1724063741832,0.13690423,58198.0,58197.0,0.521311]
[1724063742904,0.02330423,58198.0,58197.0,0.864971]
[1724063743149,0.02330423,58198.0,58197.0,0.9750881]
[1724063743363,0.02330423,58198.0,58197.0,1.35490606]
[1724063743787,0.01130423,58198.0,58197.0,1.35490606]
[1724063743990,0.00730423,58198.0,58197.0,1.02134851]
[1724063744196,0.00730423,58198.0,58197.0,0.98519055]
[1724063744403,0.00730423,58198.0,58197.0,1.32885055]
[1724063744609,0.00030423,58198.0,58197.0,1.32885055]
[1724063745441,0.00530423,58198.0,58197.0,1.32885055]
[1724063745649,0.00030423,58198.0,58197.0,1.32885055]
[1724063746058,0.00330423,58198.0,58197.0,1.32885055]
[1724063746473,0.00830423,58198.0,58197.0,1.32885055]
[1724063748127,0.00830423,58198.0,58197.0,1.50040509]
[1724063748381,0.00090311,58203.0,58202.0,1.207705]
[1724063748509,0.00090311,58203.0,58202.0,1.61545954]
[1724063748714,0.00090311,58203.0,58202.0,1.65161694]
[1724063749542,0.00190311,58203.0,58202.0,1.61545954]
[1724063749783,0.00090311,58203.0,58202.0,1.70221903]
[1724063749990,0.00090311,58203.0,58202.0,1.73837643]
[1724063750210,0.00190311,58203.0,58202.0,1.70521903]
[1724063750848,0.00190311,58203.0,58202.0,2.04884903]
[1724063751271,0.17410311,58203.0,58202.0,1.70521903]
[1724063751451,0.17410311,58203.0,58202.0,1.53366449]
[1724063752011,0.06520311,58203.0,58202.0,1.53366449]
[1724063753484,0.00190311,58203.0,58202.0,1.53366449]
[1724063756993,0.00190311,58203.0,58202.0,1.70521903]
[1724063757200,0.18010311,58203.0,58202.0,0.008]
[1724063757418,1.03916311,58203.0,58202.0,0.003]
[1724063757650,1.05557874,58203.0,58202.0,0.003]
[1724063758514,0.171824,58199.0,58198.0,0.001]
[1724063758735,0.33473963,58199.0,58198.0,0.003]
[1724063760049,0.33773963,58199.0,58198.0,0.003]
[1724063760348,0.17091563,58199.0,58198.0,0.003]
[1724063760559,0.17091563,58199.0,58198.0,0.176827]
[1724063760771,0.17091563,58199.0,58198.0,0.005]
[1724063760981,0.1545,58199.0,58198.0,0.005]
[1724063761191,0.326324,58199.0,58197.0,0.003821]
[1724063761397,0.179824,58199.0,58197.0,0.003821]
[1724063761607,0.179824,58199.0,58198.0,0.002]
[1724063761818,0.008,58199.0,58197.0,0.003821]
[1724063762026,0.67550611,58198.0,58197.0,0.000821]
[1724063762272,1.01916011,58198.0,58197.0,0.000821]
[1724063763428,1.02116011,58198.0,58197.0,0.000821]
[1724063763837,1.36881411,58198.0,58197.0,0.000821]
[1724063764270,1.48503174,58198.0,58197.0,0.000821]
[1724063764502,1.36881411,58198.0,58197.0,0.000821]
[1724063764631,1.48503743,58198.0,58197.0,0.000821]
[1724063764826,1.46951543,58198.0,58197.0,0.000821]
[1724063765236,1.34929211,58198.0,58197.0,0.000821]
[1724063765450,1.34729211,58198.0,58197.0,0.000821]
[1724063765666,1.35629211,58198.0,58197.0,0.000821]
[1724063765855,1.36329211,58198.0,58197.0,0.000821]
[1724063766054,1.34729211,58198.0,58197.0,0.000821]
[1724063766456,1.37529211,58198.0,58197.0,0.000821]
[1724063766923,0.68798411,58198.0,58197.0,0.001821]
[1724063767128,0.34433011,58198.0,58197.0,0.003821]
[1724063767350,0.17250311,58198.0,58197.0,0.005821]
[1724063768392,0.15850311,58198.0,58197.0,0.005821]
[1724063768620,0.14450311,58198.0,58197.0,0.005821]
[1724063768810,0.15550311,58198.0,58197.0,0.001821]
[1724063769012,0.33733011,58198.0,58197.0,0.001821]
[1724063769147,0.32633011,58198.0,58197.0,0.001821]
[1724063769334,1.203016,58187.0,58178.0,0.001]
[1724063769536,1.347916,58187.0,58179.0,0.001]
[1724063769751,0.660478,58187.0,58186.0,0.00921]
[1724063769977,0.660478,58187.0,58186.0,0.00821]
[1724063770193,0.660478,58187.0,58186.0,0.00921]
[1724063770403,1.004197,58187.0,58186.0,0.00821]
[1724063770611,0.660478,58187.0,58186.0,0.01121]
[1724063770822,0.660478,58187.0,58186.0,0.01321]
[1724063771483,0.671478,58187.0,58186.0,0.01321]
[1724063771697,0.680478,58187.0,58186.0,0.01321]
[1724063772113,0.669478,58187.0,58186.0,0.01321]
[1724063772340,0.680478,58187.0,58186.0,0.01321]
[1724063772962,0.1559,58187.0,58186.0,0.01321]
[1724063773225,0.327759,58187.0,58186.0,0.01321]
[1724063773428,0.671478,58187.0,58186.0,0.01321]
[1724063773652,0.681478,58187.0,58186.0,0.01321]
[1724063774151,0.681478,58187.0,58186.0,0.20327284]
[1724063774152,0.021,58187.0,58186.0,0.20327284]
[1724063774383,0.021,58187.0,58186.0,1.48780154]
[1724063774593,0.021,58187.0,58186.0,3.42210742]
[1724063774795,0.00090311,58198.0,58197.0,0.86115]
[1724063775013,0.00090311,58198.0,58197.0,1.44201]
[1724063775218,0.00090311,58198.0,58197.0,1.61356454]
[1724063775875,0.00090311,58198.0,58197.0,1.61556454]
[1724063776526,0.00090311,58198.0,58197.0,1.61656454]
[1724063776733,0.00090311,58198.0,58197.0,1.77925978]
[1724063778410,0.00090311,58198.0,58197.0,1.78325978]
[1724063782711,0.00090311,58198.0,58197.0,2.22691978]
[1724063783751,0.00090311,58198.0,58197.0,2.22291978]
[1724063783963,0.00190311,58198.0,58197.0,2.23391978]
[1724063784176,0.00190311,58198.0,58197.0,2.23291978]
[1724063784577,0.00290311,58198.0,58197.0,2.23991978]
[1724063787526,0.08680311,58198.0,58197.0,1.49736454]
[1724063787734,0.08680311,58198.0,58197.0,1.73356454]
[1724063787950,0.00290311,58198.0,58197.0,3.23356454]
[1724063788158,0.00290311,58198.0,58197.0,3.74877908]
[1724063788365,0.00290311,58198.0,58197.0,4.09243908]
[1724063788572,0.00290311,58198.0,58197.0,4.11643908]
[1724063788776,0.00090311,58203.0,58202.0,1.551335]
[1724063788981,0.00090311,58203.0,58202.0,2.21484159]
[1724063789185,0.00090311,58203.0,58202.0,2.48719695]
[1724063789395,0.00090311,58203.0,58202.0,2.25099695]
[1724063789988,0.00090311,58203.0,58202.0,2.48819695]
[1724063790195,0.00090311,58216.0,58215.0,1.207439]
[1724063790426,0.00090311,58216.0,58215.0,1.73593744]
[1724063791690,0.00090311,58216.0,58215.0,3.23593744]
[1724063791898,0.00090311,58216.0,58215.0,3.23793744]
[1724063792485,0.00090311,58216.0,58215.0,3.23993744]
[1724063792747,0.00090311,58216.0,58215.0,3.23593744]
[1724063792953,0.00090311,58216.0,58215.0,3.24093744]
[1724063793159,0.00090311,58216.0,58215.0,3.24893744]
[1724063794008,0.07670311,58216.0,58215.0,3.24893744]
[1724063794222,0.07670311,58216.0,58215.0,0.876885]
[1724063794223,0.13940311,58216.0,58215.0,0.876885]
[1724063794632,0.13940311,58216.0,58215.0,0.533331]
[1724063794855,0.13940311,58216.0,58215.0,0.876885]
[1724063795062,0.13940311,58216.0,58215.0,0.9989305]
[1724063798714,0.13940311,58216.0,58215.0,0.876885]
[1724063800627,0.13940311,58216.0,58215.0,1.04843954]
[1724063800835,0.13940311,58216.0,58215.0,1.39199354]
[1724063801717,0.07670311,58216.0,58215.0,1.39199354]
[1724063801973,0.00090311,58216.0,58215.0,1.39199354]
[1724063802212,0.00090311,58216.0,58215.0,1.53119289]
[1724063803205,0.08310311,58216.0,58215.0,1.53119289]
[1724063804186,0.14530311,58216.0,58215.0,0.876885]
[1724063805900,0.14530311,58216.0,58215.0,0.018]
[1724063806475,0.14530311,58216.0,58215.0,0.189777]
[1724063806732,0.14530311,58216.0,58215.0,0.018]
[1724063807491,0.16168474,58216.0,58215.0,0.018]
[1724063807717,0.16168474,58216.0,58215.0,0.013]
[1724063807955,0.14530311,58216.0,58215.0,0.005]
[1724063808189,0.14930311,58216.0,58215.0,0.005]
[1724063808421,0.16568447,58216.0,58215.0,0.005]
[1724063808654,0.16268447,58216.0,58215.0,0.005]
[1724063808920,0.16168447,58216.0,58215.0,0.005]
[1724063809122,0.16368447,58216.0,58215.0,0.005]
[1724063809357,1.02255447,58216.0,58215.0,0.001]
[1724063809565,0.67900647,58216.0,58215.0,0.003]
[1724063809950,0.67900647,58216.0,58215.0,0.005]
[1724063811664,0.67900647,58216.0,58215.0,0.001]
[1724063811879,0.01928447,58216.0,58212.0,0.001]
[1724063812097,0.661847,58213.0,58212.0,0.001]
[1724063812382,0.67822836,58213.0,58212.0,0.001]
[1724063814012,0.33466336,58213.0,58212.0,0.005]
[1724063814248,0.33466336,58213.0,58212.0,0.006]
[1724063814499,0.33966336,58213.0,58212.0,0.006]
[1724063814708,0.33966336,58213.0,58212.0,0.001]
[1724063814709,0.16788136,58213.0,58212.0,0.001]
[1724063814914,0.16788136,58213.0,58212.0,0.0530383]
[1724063815121,0.17388136,58213.0,58212.0,0.0560383]
[1724063815549,0.17388076,58213.0,58212.0,0.0560383]
[1724063815969,0.17388076,58213.0,58212.0,0.0580383]
[1724063816795,0.1575,58213.0,58212.0,0.0580383]
[1724063816992,0.17389248,58213.0,58212.0,0.0580383]
[1724063817448,0.17389248,58213.0,58212.0,0.2298233]
[1724063817658,0.17389248,58213.0,58212.0,0.5733943]
[1724063818111,0.17389248,58213.0,58212.0,0.9169653]
[1724063818112,0.17388769,58213.0,58212.0,0.9169653]
[1724063818325,0.1575,58213.0,58212.0,0.9169653]
[1724063820268,0.1575,58213.0,58212.0,1.43209084]
[1724063821393,0.1515,58213.0,58212.0,1.43109084]
[1724063821598,0.1465,58213.0,58212.0,1.43109084]
[1724063821816,0.1485,58213.0,58212.0,1.43109084]
[1724063822043,0.1485,58213.0,58212.0,1.43709084]
[1724063822248,0.1485,58213.0,58212.0,1.43109084]
[1724063822452,0.1485,58213.0,58212.0,1.43309084]
[1724063822880,0.1485,58213.0,58212.0,1.43109084]
[1724063823357,0.1465,58213.0,58212.0,1.43109084]
[1724063824015,0.1465,58213.0,58212.0,0.863927]
[1724063824854,0.1465,58213.0,58212.0,0.869927]
[1724063825673,0.1465,58213.0,58212.0,0.877927]
[1724063826883,0.1465,58213.0,58212.0,1.04948154]
[1724063827115,0.00090311,58216.0,58215.0,0.520331]
[1724063827324,0.00090311,58216.0,58215.0,1.47899354]
[1724063827974,0.00090311,58216.0,58215.0,2.97899354]
[1724063828847,0.00090311,58216.0,58215.0,3.02016842]
[1724063829298,0.13910311,58216.0,58215.0,3.02016842]
[1724063829518,0.13910311,58216.0,58215.0,3.19172296]
[1724063830864,0.13910311,58216.0,58215.0,3.19472296]
[1724063831077,0.13910311,58216.0,58215.0,0.528331]
[1724063831711,0.15551249,58216.0,58215.0,0.184777]
[1724063831921,0.15551249,58216.0,58215.0,0.528331]
[1724063832150,0.15551249,58216.0,58215.0,0.9590742]
[1724063832364,0.13910311,58216.0,58215.0,0.9590742]
[1724063832574,0.13910311,58216.0,58215.0,1.47418274]
[1724063835442,0.13910311,58216.0,58215.0,2.97418274]
[1724063835887,0.13910311,58216.0,58215.0,0.528331]
[1724063837187,0.65442511,58216.0,58215.0,0.008]
[1724063837404,1.01437208,58216.0,58215.0,0.008]
[1724063837613,1.35792008,58216.0,58215.0,0.008]
[1724063837827,1.42300416,58216.0,58215.0,0.008]
[1724063838063,1.56014358,58216.0,58215.0,0.008]
[1724063838275,1.56014358,58216.0,58215.0,0.005]
[1724063838490,1.5000562,58216.0,58215.0,0.005]
[1724063838669,1.50800214,58216.0,58215.0,0.001]
[1724063839129,1.43600416,58216.0,58215.0,0.001]
[1724063839340,1.41960519,58216.0,58215.0,0.001]
[1724063839550,1.48732966,58216.0,58215.0,0.001]
[1724063839765,1.49232966,58216.0,58215.0,0.002]
[1724063839969,1.49233378,58216.0,58215.0,0.002]
[1724063840184,1.48433378,58216.0,58215.0,0.001]
[1724063840393,1.4272497,58216.0,58215.0,0.002]
[1724063840617,1.37592466,58216.0,58215.0,0.002]
[1724063840826,1.4272497,58216.0,58215.0,0.002]
[1724063841062,1.42727978,58216.0,58215.0,0.002]
[1724063841474,1.37595474,58216.0,58215.0,0.002]
[1724063841691,1.49254643,58216.0,58215.0,0.002]
[1724063842557,1.42727978,58216.0,58215.0,0.002]
[1724063843170,1.37595474,58216.0,58215.0,0.002]
[1724063843504,1.3759675,58216.0,58215.0,0.002]
[1724063843911,1.0324195,58216.0,58215.0,0.002]
[1724063844267,0.6888715,58216.0,58215.0,0.003]
[1724063844484,1.0324195,58216.0,58215.0,0.002]
[1724063844673,1.0324195,58216.0,58215.0,0.003]
[1724063844920,1.0324195,58216.0,58215.0,0.005]
[1724063845745,0.3453235,58216.0,58215.0,0.005]
[1724063845946,0.6888715,58216.0,58215.0,0.005]
[1724063846369,0.6888715,58216.0,58215.0,0.002]
[1724063847200,0.6888715,58216.0,58215.0,0.003]
[1724063847636,0.6888715,58216.0,58215.0,0.002]
[1724063847848,1.0324195,58216.0,58215.0,0.002]
[1724063848922,1.0324195,58216.0,58215.0,0.003]
[1724063849533,1.0324195,58216.0,58215.0,0.002]
[1724063850764,0.6888715,58216.0,58215.0,0.003]
[1724063851732,0.1735495,58216.0,58215.0,0.5380097]
[1724063851939,0.15710311,58216.0,58215.0,0.863885]
[1724063852745,0.14910311,58216.0,58215.0,0.862885]
[1724063852955,0.13910311,58216.0,58215.0,0.9825295]
[1724063853157,0.00890311,58216.0,58215.0,1.49863804]
[1724063853333,0.00890311,58216.0,58215.0,1.49963804]
[1724063853334,0.01390311,58216.0,58215.0,1.49963804]
[1724063853534,0.01390311,58216.0,58215.0,1.84319204]
[1724063853937,0.00590311,58216.0,58215.0,1.84219204]
[1724063854343,0.00590311,58216.0,58215.0,1.84319204]
[1724063854557,0.00090311,58216.0,58215.0,1.49863804]
[1724063855100,0.00090311,58216.0,58215.0,1.210439]
[1724063855307,0.14330311,58216.0,58215.0,0.862885]
[1724063855613,0.14330311,58216.0,58215.0,0.875885]
[1724063855802,0.14330311,58216.0,58215.0,0.874885]
[1724063856040,0.14330311,58216.0,58215.0,0.881885]
[1724063856600,0.14330311,58216.0,58215.0,0.874885]
[1724063856981,0.14330311,58216.0,58215.0,0.883885]
[1724063859425,0.14330311,58216.0,58215.0,0.883885]
[1724063859829,0.00090311,58216.0,58215.0,1.05543954]
[1724063860027,0.00090311,58216.0,58215.0,1.52815749]
[1724063860808,0.00090311,58216.0,58215.0,1.53015749]
[1724063861582,0.08120311,58216.0,58215.0,1.40099354]
[1724063863104,0.14360311,58216.0,58215.0,0.885885]
[1724063863677,0.14360311,58216.0,58215.0,1.229439]
[1724063864066,0.14360311,58216.0,58215.0,1.54755744]
[1724063864269,0.00090311,58216.0,58215.0,1.54755744]
[1724063864483,0.00090311,58216.0,58215.0,3.04755744]
[1724063866285,0.00090311,58216.0,58215.0,3.52727924]
[1724063866485,0.00090311,58216.0,58215.0,3.60171425]
[1724063867136,0.00090311,58216.0,58215.0,3.62743176]
[1724063867337,0.00090311,58216.0,58215.0,3.97098576]
[1724063867544,0.00090311,58216.0,58215.0,3.89383324]
[1724063867966,0.00090311,58216.0,58215.0,3.84466544]
[1724063868169,0.00090311,58216.0,58215.0,3.88580906]
[1724063868376,0.1432,58237.0,58236.0,0.005]
[1724063868586,0.1432,58237.0,58236.0,0.176715]
[1724063868786,0.1432,58237.0,58236.0,0.52014]
[1724063869053,0.1432,58237.0,58236.0,0.86157]
[1724063869680,0.1492,58237.0,58236.0,0.86257]
[1724063869884,0.1492,58237.0,58236.0,0.9833719]
[1724063870741,0.1492,58237.0,58236.0,0.9853719]
[1724063870945,0.15010311,58237.0,58236.0,1.3298019]
[1724063871156,0.15010311,58237.0,58236.0,1.5660019]
[1724063871804,0.15010311,58237.0,58236.0,1.73755644]
[1724063872012,0.15010311,58237.0,58236.0,1.73655644]
[1724063872215,0.14410311,58237.0,58236.0,1.73555644]
[1724063872418,0.14410311,58237.0,58236.0,1.73655644]
[1724063872830,0.14410311,58237.0,58236.0,1.73555644]
[1724063873251,0.14410311,58237.0,58236.0,1.73855644]
[1724063874284,0.14410311,58237.0,58236.0,1.74455644]
[1724063874711,0.14410311,58237.0,58236.0,3.24455644]
[1724063875328,0.14410311,58237.0,58236.0,3.58798644]
[1724063876778,0.14410311,58237.0,58236.0,1.62375454]
[1724063877225,0.14410311,58237.0,58236.0,1.4522]
[1724063878063,0.14410311,58237.0,58236.0,0.86857]
[1724063878261,0.14410311,58237.0,58236.0,0.01]
[1724063879080,0.14410311,58237.0,58236.0,0.183715]
[1724063879273,0.14410311,58237.0,58236.0,0.012]
[1724063879705,0.14410311,58237.0,58236.0,0.01]
[1724063879917,0.14410311,58237.0,58236.0,0.009]
[1724063880074,0.14410311,58237.0,58236.0,0.01]
[1724063880477,0.14410311,58237.0,58236.0,0.181715]
[1724063880642,0.14410311,58237.0,58236.0,0.183715]
[1724063880840,0.14410311,58237.0,58236.0,0.185715]
[1724063881534,0.14410311,58237.0,58236.0,0.176715]
[1724063881715,0.14510311,58237.0,58236.0,0.176715]
[1724063882565,0.14510311,58237.0,58234.0,0.343437]
[1724063882566,0.0601,58235.0,58234.0,0.001]
[1724063882696,0.1399,58235.0,58234.0,0.001]
[1724063882939,0.1419,58236.0,58233.0,0.001]
[1724063883173,0.0656,58231.0,58227.0,0.001]
[1724063883340,0.00190311,58237.0,58226.0,0.001]
[1724063883341,0.1419,58229.0,58226.0,0.001]
[1724063883548,0.171738,58228.0,58226.0,0.001]
[1724063883763,0.171738,58228.0,58225.0,0.173746]
[1724063883764,0.171738,58228.0,58227.0,0.001]
[1724063883967,0.171737,58229.0,58227.0,0.001]
[1724063884279,0.1376,58229.0,58227.0,0.001]
[1724063884410,0.343457,58232.0,58227.0,0.17474]
[1724063884411,0.1376,58228.0,58227.0,0.17474]
[1724063884618,0.1376,58228.0,58227.0,0.17674]
[1724063884788,0.1376,58228.0,58227.0,0.520223]
[1724063884987,0.1386,58228.0,58227.0,0.521223]
[1724063885185,0.1386,58228.0,58227.0,0.2642106]
[1724063885393,0.1376,58228.0,58227.0,0.17674]
[1724063885625,0.1386,58228.0,58227.0,0.17674]
[1724063885793,0.1386,58228.0,58227.0,0.17774]
[1724063886013,0.1376,58228.0,58227.0,0.17774]
[1724063887129,0.1376,58228.0,58227.0,0.6076952]
[1724063887328,0.1376,58228.0,58227.0,0.6066952]
[1724063887329,0.1386,58228.0,58227.0,0.6066952]
[1724063887534,0.1386,58228.0,58227.0,0.520223]
[1724063887735,0.1406,58228.0,58227.0,0.521223]
[1724063888071,0.1406,58228.0,58227.0,0.17774]
[1724063889488,0.1406,58228.0,58227.0,0.521223]
[1724063889694,0.1406,58228.0,58227.0,0.6076952]
[1724063890671,0.1406,58228.0,58227.0,0.9511782]
[1724063893280,0.1376,58228.0,58227.0,0.870706]
[1724063893887,0.1376,58228.0,58227.0,0.525223]
[1724063894065,0.13850311,58228.0,58227.0,0.527223]
[1724063894313,0.13850311,58228.0,58227.0,0.9617774]
[1724063895326,0.13850311,58228.0,58227.0,1.3052604]
[1724063895777,0.00090311,58228.0,58227.0,1.47681494]
[1724063896193,0.00090311,58228.0,58227.0,1.82029794]
[1724063896798,0.00090311,58228.0,58227.0,3.32029794]
[1724063897297,0.00090311,58228.0,58227.0,3.35643753]
[1724063898618,0.00090311,58228.0,58227.0,3.45643753]
[1724063899251,0.00090311,58228.0,58227.0,3.46661901]
[1724063899459,0.00090311,58228.0,58227.0,3.43047942]
[1724063899664,0.00090311,58228.0,58227.0,3.46662248]
[1724063904269,0.00090311,58228.0,58227.0,3.52095085]
[1724063904451,0.00090311,58228.0,58227.0,3.54395085]
[1724063904686,0.00090311,58237.0,58236.0,1.786635]
[1724063904891,0.00090311,58237.0,58236.0,2.4377626]
[1724063905418,0.00090311,58237.0,58236.0,3.9377626]
[1724063906251,0.00090311,58237.0,58236.0,3.9487626]
[1724063906548,0.00090311,58237.0,58236.0,3.9497626]
[1724063906706,0.00090311,58237.0,58236.0,4.05956779]
[1724063906950,0.00090311,58237.0,58236.0,4.05856779]
[1724063907389,0.00090311,58237.0,58236.0,4.04756779]
[1724063907598,0.00090311,58237.0,58236.0,4.0475309]
[1724063907809,0.00090311,58237.0,58236.0,4.0625309]
[1724063908020,0.00090311,58237.0,58236.0,4.0755309]
[1724063909292,0.14540311,58237.0,58236.0,3.4959009]
[1724063909723,0.14540311,58237.0,58236.0,3.50623616]
[1724063910335,0.14540311,58237.0,58236.0,3.47012999]
[1724063910584,0.14540311,58237.0,58236.0,1.84998954]
[1724063911230,0.14540311,58237.0,58236.0,3.34998954]
[1724063911639,0.14540311,58237.0,58236.0,3.32198954]
[1724063911970,0.14540311,58237.0,58236.0,3.00155954]
[1724063912199,0.14540311,58237.0,58236.0,1.50155954]
[1724063912401,0.14540311,58237.0,58236.0,1.330005]
[1724063912609,0.14540311,58237.0,58236.0,1.317005]
[1724063913184,0.14540311,58237.0,58236.0,0.863575]
[1724063913396,0.14540311,58237.0,58236.0,0.520145]
[1724063913598,0.14540311,58237.0,58236.0,0.526145]
[1724063914027,0.14540311,58237.0,58236.0,0.884575]
[1724063914202,0.14540311,58237.0,58236.0,0.874575]
[1724063914404,0.14540311,58237.0,58236.0,0.861575]
[1724063915172,0.14540311,58237.0,58236.0,0.863575]
[1724063915376,0.14540311,58237.0,58236.0,1.0108966]
[1724063915577,0.14540311,58237.0,58236.0,0.866575]
[1724063916412,0.14540311,58237.0,58236.0,1.210005]
[1724063916615,0.14540311,58237.0,58236.0,0.866575]
[1724063917145,0.14540311,58237.0,58236.0,1.210005]
[1724063922051,0.14540311,58237.0,58236.0,2.710005]
[1724063922336,0.14540311,58237.0,58236.0,2.88155954]
[1724063922738,0.14540311,58237.0,58236.0,2.710005]
[1724063923499,0.14540311,58237.0,58236.0,2.88155954]
[1724063923944,0.14540311,58237.0,58236.0,3.22498954]
[1724063926190,0.14540311,58237.0,58236.0,3.26115509]
[1724063926742,0.14540311,58237.0,58236.0,0.866575]
[1724063927395,0.14540311,58237.0,58236.0,0.9875772]
[1724063928257,0.14540311,58237.0,58236.0,0.69086]
[1724063928467,0.14540311,58237.0,58230.0,0.001]
[1724063928468,0.0641,58234.0,58230.0,0.001]
[1724063928677,0.01732797,58237.0,58228.0,0.000821]
[1724063928678,0.171735,58229.0,58228.0,0.000821]
[1724063928893,1.02179295,58229.0,58228.0,0.000821]
[1724063929534,0.515304,58218.0,58209.0,0.343589]
[1724063929740,0.515304,58218.0,58208.0,0.002]
[1724063929741,0.67142886,58218.0,58208.0,0.002]
[1724063929944,0.67142886,58218.0,58211.0,0.171788]
[1724063930160,0.67142886,58218.0,58209.0,0.343587]
[1724063930368,0.67142886,58218.0,58211.0,0.171788]
[1724063930573,0.67142886,58218.0,58213.0,0.171782]
[1724063931203,0.67342886,58218.0,58217.0,0.001821]
[1724063931839,0.67742886,58218.0,58217.0,0.002821]
[1724063932288,0.661004,58218.0,58217.0,0.002821]
[1724063932513,0.659004,58218.0,58217.0,0.001821]
[1724063932942,0.77567791,58218.0,58217.0,0.001821]
[1724063933143,0.67742581,58218.0,58217.0,0.002821]
[1724063933752,0.67542581,58218.0,58217.0,0.001821]
[1724063933961,0.67101241,58218.0,58217.0,0.000821]
[1724063934173,0.67301241,58218.0,58217.0,0.001821]
[1724063934378,0.67301241,58218.0,58217.0,0.002821]
[1724063934379,0.6685906,58218.0,58217.0,0.002821]
[1724063935034,0.1537,58218.0,58217.0,0.003821]
[1724063935514,0.1537,58218.0,58217.0,0.005821]
[1724063935722,0.1537,58218.0,58217.0,0.002821]
[1724063935942,0.1537,58218.0,58217.0,1.2590344]
[1724063936148,0.1537,58218.0,58217.0,1.2610344]
[1724063936357,0.1537,58218.0,58217.0,1.209218]
[1724063936831,0.1537,58218.0,58217.0,0.865676]
[1724063937066,0.1517,58218.0,58217.0,0.864676]
[1724063937312,0.1397,58218.0,58217.0,1.207218]
[1724063937525,0.1397,58218.0,58217.0,1.210218]
[1724063937740,0.1397,58218.0,58217.0,1.207218]
[1724063937959,0.1397,58218.0,58217.0,0.863676]
[1724063938171,0.1397,58218.0,58217.0,0.864676]
[1724063938380,0.1397,58218.0,58217.0,0.863676]
[1724063938582,0.1397,58218.0,58217.0,1.207218]
[1724063938786,0.1397,58218.0,58217.0,1.210218]
[1724063938998,0.1417,58218.0,58217.0,0.866676]
[1724063939445,0.1417,58218.0,58217.0,1.210218]
[1724063939446,0.1397,58218.0,58217.0,1.210218]
[1724063940902,0.1397,58218.0,58217.0,0.866676]
[1724063941554,0.1397,58218.0,58217.0,1.210218]
[1724063943006,0.1397,58218.0,58217.0,2.710218]
[1724063943214,0.0656,58223.0,58222.0,1.206292]
[1724063943629,0.1426,58223.0,58222.0,1.206292]
[1724063945043,0.1446,58223.0,58222.0,1.206292]
[1724063945238,0.1476,58223.0,58222.0,1.206292]